bitfinex/quotes_ETHUSD_20220310
["timestamp","ask_amount","ask_price","bid_price","bid_amount"]
[1646918803704,3.89224075,2600.7,2600.6,1.19137533]
[1646918804706,3.89224075,2600.7,2600.5,0.00393569]
[1646918805004,3.89224075,2600.6,2600.5,0.00393569]
[1646918805308,26.0,2600.5,2600.2,1.47908257]
[1646918805503,26.0,2600.5,2600.3,1.17908257]
[1646918805504,3.96199355,2600.4,2600.3,1.17908257]
[1646918805903,0.46199355,2600.4,2600.3,1.17908257]
[1646918806104,3.27896075,2600.4,2600.3,1.17908257]
[1646918806350,6.77896075,2600.4,2600.3,1.17908257]
[1646918806552,7.16296075,2600.4,2600.1,0.03116436]
[1646918806752,1.35440075,2600.3,2600.1,0.03116436]
[1646918806950,0.39224075,2600.2,2600.1,0.03116436]
[1646918807149,0.39224075,2600.2,2600.1,2.14199448]
[1646918807550,0.39224075,2600.2,2600.1,2.44199448]
[1646918808155,0.96216,2600.3,2600.1,2.44199448]
[1646918808955,0.96191,2600.5,2600.2,1.1693619]
[1646918809254,0.96191,2600.5,2600.2,3.0931283]
[1646918809455,0.96191,2600.5,2600.3,1.1693619]
[1646918809756,0.96191,2600.5,2600.4,1.4693619]
[1646918809955,1.38920758,2600.5,2600.4,1.4693619]
[1646918812603,0.96191,2600.5,2600.4,1.4693619]
[1646918814146,1.92383,2600.7,2600.4,1.4693619]
[1646918814147,1.92383,2600.7,2600.6,0.44446749]
[1646918814346,2.35105573,2600.7,2600.6,0.74446749]
[1646918814545,2.35105573,2600.7,2600.6,1.91382939]
[1646918816859,0.07144149,2600.9,2600.6,17.69682939]
[1646918816860,0.00363218,2600.9,2600.6,17.69682939]
[1646918817055,0.00363218,2600.9,2600.7,12.8993619]
[1646918817253,0.00363218,2600.9,2600.8,1.7223619]
[1646918817455,0.44506924,2601.1,2600.8,2.6839319]
[1646918817702,0.44506924,2601.1,2600.9,2.07883269]
[1646918817905,0.44506924,2601.1,2601.0,1.7223619]
[1646918818703,2.66594745,2601.2,2601.0,6.1839719]
[1646918818904,2.66594745,2601.2,2601.1,4.6693619]
[1646918818905,1.70795957,2601.2,2601.1,4.6693619]
[1646918819103,1.70795957,2601.2,2601.1,2.0223619]
[1646918819507,1.70795957,2601.2,2601.1,17.2523619]
[1646918819805,1.70432745,2601.2,2601.1,14.7523619]
[1646918820006,1.70432745,2601.2,2601.1,3.0223619]
[1646918820203,1.70432745,2601.2,2601.1,2.0223619]
[1646918821205,0.96153,2601.4,2601.1,14.1363619]
[1646918821455,2.03189334,2602.1,2601.2,14.31027828]
[1646918821456,0.00365681,2601.3,2601.2,14.31027828]
[1646918821654,0.00365681,2601.3,2601.2,14.86327828]
[1646918821854,0.00365681,2601.3,2601.2,3.74927828]
[1646918822054,0.00365681,2601.3,2601.2,15.4137519]
[1646918822255,0.41212429,2601.7,2601.2,16.3751263]
[1646918822453,0.00365676,2601.4,2601.3,4.1195664]
[1646918822659,0.00365676,2601.4,2601.3,5.9339764]
[1646918822857,0.00365676,2601.4,2601.3,6.9339764]
[1646918823057,0.00365676,2601.4,2601.3,19.0479764]
[1646918823263,0.00365676,2601.4,2601.3,18.6639764]
[1646918823461,0.96141,2601.7,2601.3,18.6639764]
[1646918823658,0.96141,2601.7,2601.4,1.1693619]
[1646918823859,0.96141,2601.7,2601.5,1.51442]
[1646918824159,0.96141,2601.7,2601.6,1.1693619]
[1646918824362,1.37329894,2601.7,2601.6,1.4693619]
[1646918824861,0.96141,2601.7,2601.6,1.4693619]
[1646918825497,0.0594477,2601.8,2601.6,1.4693619]
[1646918825697,0.0594477,2601.8,2601.6,0.3]
[1646918825698,0.0036534,2601.8,2601.6,0.3]
[1646918825897,0.41171826,2601.8,2601.6,0.3]
[1646918826301,0.00365338,2601.8,2601.6,0.3]
[1646918827102,0.96142,2601.9,2601.6,0.3]
[1646918827302,0.00365382,2601.8,2601.6,0.3]
[1646918827709,0.47796085,2601.8,2601.6,0.3]
[1646918827910,0.41165491,2601.7,2601.6,0.3]
[1646918828948,1.37323491,2601.7,2601.5,0.3]
[1646918829148,0.48296574,2601.6,2601.5,0.3]
[1646918829350,0.41167087,2601.6,2601.5,0.3]
[1646918830351,3.91167087,2601.6,2601.5,0.3]
[1646918830552,5.83503087,2601.6,2601.3,0.3]
[1646918830751,0.41167087,2601.5,2601.3,0.3]
[1646918831152,1.37333087,2601.5,2601.3,1.2616025]
[1646918831457,0.41167087,2601.4,2601.3,1.2616025]
[1646918832051,0.41167087,2601.4,2601.3,2.35902732]
[1646918832451,0.00365394,2601.5,2601.3,2.35902732]
[1646918832705,0.00365394,2601.5,2601.4,0.3]
[1646918833106,0.41167087,2601.6,2601.4,0.3]
[1646918833407,0.41532476,2601.6,2601.3,2.05902732]
[1646918834206,0.41532476,2601.6,2601.4,0.3]
[1646918834406,0.41167087,2601.6,2601.3,2.05902732]
[1646918834610,0.02663886,2601.4,2601.3,2.05902732]
[1646918835109,0.43830973,2601.4,2601.3,2.05902732]
[1646918836346,0.43830973,2601.4,2601.3,2.35902732]
[1646918838552,0.43830973,2601.4,2601.3,3.53416851]
[1646918838553,0.02663886,2601.4,2601.3,3.53416851]
[1646918838757,0.47533755,2601.4,2600.9,0.9617878]
[1646918838958,0.44869869,2601.3,2600.9,0.9617878]
[1646918839354,0.06214465,2601.2,2600.9,0.9617878]
[1646918839556,0.44869869,2601.1,2600.9,0.9617878]
[1646918839756,0.06188991,2601.0,2600.9,0.9617878]
[1646918840209,0.06188991,2601.0,2600.9,3.40630391]
[1646918840412,0.153747,2601.2,2600.9,3.40630391]
[1646918840608,0.48450696,2601.1,2600.9,3.30158784]
[1646918840809,0.48450696,2601.1,2600.9,3.26320784]
[1646918841008,0.48450696,2601.1,2601.0,1.10482828]
[1646918841009,0.00365417,2601.1,2601.0,1.10482828]
[1646918841210,0.00365417,2601.1,2601.0,1.10268728]
[1646918841609,0.153747,2601.2,2601.0,1.10268728]
[1646918841814,0.12943726,2601.2,2601.0,12.83268728]
[1646918842010,0.12943726,2601.2,2601.1,0.553]
[1646918842410,0.12943726,2601.2,2601.1,0.54655998]
[1646918842610,0.127147,2601.2,2601.1,0.54655998]
[1646918843212,0.127147,2601.2,2601.0,0.3]
[1646918843412,0.127147,2601.2,2600.9,3.30158784]
[1646918843613,0.127147,2601.2,2600.9,2.00158784]
[1646918844257,0.12943726,2601.2,2600.9,2.00158784]
[1646918844666,0.05951308,2601.1,2600.9,2.00158784]
[1646918844864,0.13917281,2601.1,2600.9,2.30158784]
[1646918845464,0.1431079,2601.1,2600.9,2.30158784]
[1646918845865,0.08359482,2601.1,2600.9,1.2617878]
[1646918846265,0.13908498,2601.1,2600.9,1.2617878]
[1646918846464,0.13514989,2601.1,2600.9,1.2617878]
[1646918846666,0.13908498,2601.1,2600.9,1.2617878]
[1646918847070,0.13908498,2601.1,2600.9,0.9617878]
[1646918847267,0.13908498,2601.1,2600.7,1.18640478]
[1646918847268,0.08359482,2601.1,2600.7,1.18640478]
[1646918847613,0.08359482,2601.1,2600.7,1.48640478]
[1646918847614,0.06109189,2601.0,2600.7,1.48640478]
[1646918848005,0.06109189,2601.0,2600.7,2.44825448]
[1646918848206,0.96182,2600.9,2600.7,2.44825448]
[1646918848409,0.06988272,2600.8,2600.7,2.44825448]
[1646918848809,0.06988272,2600.8,2600.7,1.2618497]
[1646918849012,0.06988272,2600.8,2600.6,3.36812559]
[1646918849213,3.56988272,2600.8,2600.6,0.44446749]
[1646918849411,0.05537641,2600.7,2600.6,0.44446749]
[1646918849618,3.74757641,2600.7,2600.6,0.44446749]
[1646918850412,3.55537641,2600.7,2600.6,0.44446749]
[1646918851360,0.05537641,2600.7,2600.6,0.44446749]
[1646918853365,3.55537641,2600.7,2600.6,0.44446749]
[1646918853862,0.05537641,2600.7,2600.6,0.44446749]
[1646918855118,0.14100423,2600.7,2600.6,0.44446749]
[1646918855512,3.64100423,2600.7,2600.6,0.44446749]
[1646918855713,3.58562782,2600.7,2600.6,0.44446749]
[1646918856714,0.02853708,2600.7,2600.6,0.44446749]
[1646918856916,0.02853708,2600.7,2600.6,0.74446749]
[1646918859352,0.02853708,2600.7,2600.6,1.68507595]
[1646918859954,0.05714637,2600.7,2600.6,1.68507595]
[1646918861057,0.05714637,2600.7,2600.6,2.23807595]
[1646918861257,0.05714637,2600.7,2600.6,3.30283557]
[1646918861757,0.05714637,2600.7,2600.6,4.30283557]
[1646918862058,0.04209698,2600.7,2600.6,3.30283557]
[1646918862259,0.04209698,2600.7,2600.6,4.30283557]
[1646918862460,0.04209698,2600.7,2600.6,3.30283557]
[1646918862710,0.04209698,2600.7,2600.6,4.30283557]
[1646918862909,0.04209698,2600.7,2600.6,3.30283557]
[1646918863107,0.04209698,2600.7,2600.6,4.30283557]
[1646918864310,0.04209698,2600.7,2600.6,7.80283557]
[1646918864712,0.04209698,2600.7,2600.6,19.91683557]
[1646918865015,0.71439334,2602.1,2601.1,0.96144]
[1646918865221,1.47402987,2602.6,2601.0,0.384]
[1646918865222,0.52980561,2602.0,2601.2,17.23175962]
[1646918865412,0.95246574,2602.5,2601.2,17.23175962]
[1646918865413,0.71439334,2602.3,2601.9,1.19868067]
[1646918865615,0.72193854,2602.2,2601.9,1.19868067]
[1646918865814,0.06098244,2602.0,2601.9,1.49868067]
[1646918866012,0.52983854,2602.0,2601.9,1.49868067]
[1646918866468,0.9614,2602.2,2601.9,1.49868067]
[1646918866670,0.52983854,2602.1,2601.9,2.46004617]
[1646918867271,0.52983854,2602.1,2601.8,2.922731]
[1646918867472,0.52983854,2602.1,2601.6,1.0]
[1646918867670,0.52983854,2602.1,2601.4,3.47573]
[1646918867875,0.9615,2601.9,2601.5,1.05549376]
[1646918868071,0.52983854,2601.8,2601.5,1.05549376]
[1646918868471,0.52983854,2601.8,2601.4,0.853]
[1646918868472,0.52983854,2601.8,2601.4,1.853]
[1646918868671,0.52983854,2601.8,2601.7,1.01374368]
[1646918869073,0.52983854,2601.8,2601.7,1.31374368]
[1646918870520,0.52471839,2601.8,2601.7,1.31374368]
[1646918871016,0.52471839,2601.8,2601.7,5.36674368]
[1646918871316,0.0039304,2601.9,2601.7,6.36674368]
[1646918871514,0.04633686,2602.0,2601.7,6.36674368]
[1646918871714,0.04633686,2602.0,2601.7,2.86674368]
[1646918871916,0.0039304,2601.9,2601.8,0.9613936]
[1646918872115,0.0039304,2601.9,2601.8,1.5143936]
[1646918872316,0.0039304,2601.9,2601.8,1.8143936]
[1646918872716,0.04633686,2602.0,2601.8,1.8143936]
[1646918872917,0.04633686,2602.0,2601.9,1.9226711]
[1646918873120,0.05014929,2602.0,2601.9,2.2226711]
[1646918873953,0.04633686,2602.0,2601.9,2.2226711]
[1646918874355,0.04633686,2602.0,2601.9,0.7342673]
[1646918877262,0.04633686,2602.0,2601.9,0.3]
[1646918878118,0.04633686,2602.0,2601.7,0.3]
[1646918878324,0.96152,2601.9,2601.7,0.3]
[1646918878519,0.96152,2601.9,2601.6,0.3]
[1646918878818,0.96152,2601.9,2601.5,0.192]
[1646918879018,0.96516839,2601.9,2601.5,0.192]
[1646918879520,0.02315325,2601.8,2601.5,0.192]
[1646918879719,0.98472325,2601.8,2601.7,1.40457197]
[1646918880121,0.98837655,2601.8,2601.7,1.40457197]
[1646918880926,0.02680655,2601.8,2601.7,1.40457197]
[1646918881122,0.02315325,2601.8,2601.7,1.40457197]
[1646918882557,0.09037494,2601.8,2601.5,1.192]
[1646918882762,0.09037494,2601.8,2601.1,1.00129127]
[1646918882960,0.09037494,2601.8,2601.0,0.9617157]
[1646918882961,0.05999255,2601.7,2601.0,0.9617157]
[1646918883261,0.96176,2601.6,2601.1,0.3]
[1646918883469,0.07050323,2601.5,2600.7,0.00129127]
[1646918883661,2.37806323,2601.5,2600.8,1.9233474]
[1646918883861,0.06201019,2601.4,2600.8,2.2233474]
[1646918884662,0.06201019,2601.4,2600.8,5.1082974]
[1646918884861,0.5762,2601.7,2600.8,6.1082974]
[1646918884862,0.05742831,2601.6,2600.8,6.1082974]
[1646918885112,0.05742831,2601.6,2601.3,0.9615788]
[1646918885302,0.05742831,2601.6,2601.3,1.2615788]
[1646918886302,0.06108101,2601.6,2601.3,1.2615788]
[1646918887104,0.05742831,2601.6,2601.3,1.2615788]
[1646918887303,0.06943636,2601.8,2601.3,1.2615788]
[1646918887503,0.00365283,2601.6,2601.3,1.2615788]
[1646918887707,0.06845354,2601.6,2601.3,1.2615788]
[1646918888206,0.06845354,2601.6,2601.3,2.2230788]
[1646918888408,0.06480071,2601.6,2601.3,2.2230788]
[1646918888609,0.06826394,2601.6,2601.3,2.2230788]
[1646918888855,0.06826394,2601.6,2601.4,0.553]
[1646918889257,0.00346323,2601.6,2601.4,0.553]
[1646918889657,1.03187892,2601.7,2601.4,0.553]
[1646918889857,0.0752424,2601.6,2601.3,1.3]
[1646918890058,1.9986424,2601.6,2601.2,1.0]
[1646918890260,1.9986424,2601.6,2600.8,1.923346]
[1646918890261,0.96164,2601.4,2600.8,1.923346]
[1646918890459,0.06475281,2601.2,2600.9,1.06712783]
[1646918890660,0.06446828,2601.5,2600.9,1.06712783]
[1646918890860,0.06446828,2601.5,2600.9,5.12012783]
[1646918891061,0.00346978,2601.2,2601.0,1.06712783]
[1646918891264,0.00346978,2601.2,2601.0,1.92012783]
[1646918891462,0.00346978,2601.2,2601.1,1.06712783]
[1646918891859,0.00346978,2601.2,2601.1,2.29545555]
[1646918892062,0.12373126,2601.5,2601.2,0.9615779]
[1646918892261,0.00359506,2601.3,2601.2,0.9615779]
[1646918892460,0.00359506,2601.3,2601.2,2.02860475]
[1646918893208,0.12373126,2601.5,2601.2,2.02860475]
[1646918893410,0.00359501,2601.4,2601.2,2.99018475]
[1646918893610,0.00359501,2601.4,2601.3,1.06702685]
[1646918894009,0.00359501,2601.4,2601.1,1.78132772]
[1646918894010,0.00359501,2601.4,2601.1,2.78132772]
[1646918894208,0.00359501,2601.4,2601.2,1.06720322]
[1646918894409,1.08535126,2601.5,2601.2,1.06720322]
[1646918894611,0.05846253,2601.4,2601.2,1.06720322]
[1646918895810,0.06211665,2601.4,2601.2,1.06720322]
[1646918896761,0.05846253,2601.4,2601.2,1.06720322]
[1646918896958,0.06211665,2601.4,2601.2,1.06720322]
[1646918897962,0.05846253,2601.4,2601.2,1.06720322]
[1646918898163,0.06211523,2601.4,2601.2,1.06720322]
[1646918899164,0.51394014,2601.3,2601.2,1.06625256]
[1646918899365,0.51394014,2601.3,2601.1,1.53432323]
[1646918899366,1.50785571,2601.3,2601.1,1.53432323]
[1646918899566,0.99391557,2601.3,2601.1,0.53432323]
[1646918900208,0.99391557,2601.3,2601.1,2.45741673]
[1646918900209,0.03222557,2601.3,2601.1,2.45741673]
[1646918900610,0.03587833,2601.3,2601.1,3.01041673]
[1646918900806,0.03587833,2601.3,2601.1,4.01041673]
[1646918901618,0.03222557,2601.3,2601.1,3.04891323]
[1646918901812,0.03587853,2601.3,2601.1,2.04891323]
[1646918902013,0.03587853,2601.3,2601.1,3.04891323]
[1646918902317,0.03587853,2601.3,2601.1,1.08732323]
[1646918902513,0.03587853,2601.3,2601.1,2.08732323]
[1646918902713,0.03587853,2601.3,2601.1,1.08732323]
[1646918902914,0.03222557,2601.3,2601.1,1.08732323]
[1646918903115,0.03587853,2601.3,2601.1,1.08732323]
[1646918903315,0.03587853,2601.3,2601.1,0.53432323]
[1646918903954,0.03222557,2601.3,2601.1,0.53432323]
[1646918904159,0.06807315,2601.3,2601.1,0.53432323]
[1646918904358,0.06807315,2601.3,2601.1,1.49596323]
[1646918904658,5.27565862,2602.4,2601.1,1.49596323]
[1646918904659,0.71439334,2602.3,2601.2,75.20577]
[1646918904856,0.1922,2602.7,2601.3,13.5085559]
[1646918904857,0.71439334,2602.4,2601.3,13.5085559]
[1646918905055,0.71439334,2602.4,2601.4,15.783]
[1646918905556,0.86809334,2602.5,2602.1,1.01733353]
[1646918905757,0.86809334,2602.5,2601.4,5.053]
[1646918905758,0.9613,2602.4,2601.7,0.553]
[1646918905958,1.67569334,2602.4,2601.7,2.47567]
[1646918906560,0.71439334,2602.3,2601.7,2.47567]
[1646918906764,0.00227942,2602.2,2601.7,2.47567]
[1646918906959,0.00227942,2602.2,2601.9,1.08156931]
[1646918907617,0.71439334,2602.2,2601.9,1.08156931]
[1646918907823,0.00227942,2602.2,2601.9,1.08156931]
[1646918908421,2.63965276,2602.2,2601.7,0.553]
[1646918908821,0.96158,2601.9,2601.3,3.47712857]
[1646918909021,0.96158,2601.9,2601.3,3.4758373]
[1646918909424,0.96158,2601.9,2601.3,4.53269307]
[1646918909623,0.07211687,2601.8,2601.3,1.05685577]
[1646918909821,0.06614526,2601.7,2601.3,2.05685577]
[1646918910020,0.06614526,2601.7,2601.3,1.05685577]
[1646918910222,0.06614526,2601.7,2601.0,1.853]
[1646918910422,0.06614526,2601.7,2601.0,0.553]
[1646918910423,4.53180575,2601.7,2601.0,0.553]
[1646918910622,1.03180575,2601.7,2601.0,0.553]
[1646918910822,0.06624374,2601.6,2601.1,0.9616522]
[1646918911557,0.00393065,2601.5,2601.1,1.94602289]
[1646918911756,0.00393065,2601.5,2601.1,3.86920289]
[1646918911959,0.06395412,2601.5,2601.1,3.86920289]
[1646918912155,0.06395412,2601.5,2601.1,4.86920289]
[1646918912355,0.06002347,2601.5,2601.1,4.86920289]
[1646918912759,0.00393068,2601.4,2601.1,4.86920289]
[1646918913562,0.06002347,2601.5,2601.1,4.86920289]
[1646918913760,0.00380093,2601.4,2601.1,4.86920289]
[1646918914862,0.06459476,2601.7,2601.1,4.86920289]
[1646918915119,0.00348803,2601.4,2601.1,4.86920289]
[1646918915713,0.00348803,2601.4,2601.1,2.8848322]
[1646918915914,0.00348803,2601.4,2600.8,0.00348894]
[1646918916115,0.05434068,2601.5,2600.5,0.71617964]
[1646918916116,1.21397144,2601.5,2600.5,0.71617964]
[1646918916415,0.06116415,2601.3,2600.8,0.00348894]
[1646918917215,0.06116415,2601.3,2600.7,1.05523926]
[1646918917216,0.06116415,2601.3,2600.7,2.01709346]
[1646918917416,0.15571559,2601.4,2600.7,2.01709346]
[1646918917619,0.00196359,2601.4,2600.7,2.01709346]
[1646918918015,0.00196359,2601.4,2600.7,3.53183346]
[1646918918215,0.06988739,2601.1,2600.7,4.53183346]
[1646918919161,0.51319671,2601.0,2600.8,1.07776218]
[1646918919562,0.05434068,2601.5,2601.1,0.71957201]
[1646918919760,0.57478663,2601.4,2601.2,1.07776218]
[1646918919959,0.56471296,2601.3,2601.2,1.07776218]
[1646918920962,0.51449112,2601.3,2601.2,1.07776218]
[1646918924013,0.56483386,2601.3,2601.2,1.07776218]
[1646918925415,0.62323273,2601.3,2601.2,1.07776218]
[1646918928560,0.77698673,2601.3,2601.2,1.07776218]
[1646918928963,0.62323273,2601.3,2601.2,1.07776218]
[1646918931934,0.00350989,2601.4,2601.3,72.0]
[1646918932136,0.00350989,2601.4,2601.3,75.09038037]
[1646918932332,0.00350989,2601.4,2601.3,4.39038037]
[1646918932531,0.00350989,2601.4,2601.3,2.99582447]
[1646918932736,0.00350989,2601.4,2601.3,1.99582447]
[1646918932932,0.71439334,2602.0,2601.3,2.99582447]
[1646918933134,0.00332657,2601.5,2601.3,1.84871929]
[1646918933433,0.00332657,2601.5,2601.3,1.80376805]
[1646918933957,0.71439334,2601.7,2601.3,1.25076805]
[1646918934357,0.00334236,2601.5,2601.3,1.25076805]
[1646918935365,0.71439334,2601.7,2601.3,1.25076805]
[1646918935563,0.00334236,2601.5,2601.3,1.25076805]
[1646918936360,0.05403244,2601.6,2601.3,1.25076805]
[1646918936562,0.05403244,2601.6,2601.4,1.11769193]
[1646918936763,0.00336863,2601.5,2601.4,1.41769193]
[1646918937163,0.00336863,2601.5,2601.4,1.97069193]
[1646918937363,0.71439334,2602.0,2601.4,1.96423965]
[1646918937617,0.05294775,2602.1,2601.5,4.46143]
[1646918937818,1.42869862,2602.7,2601.6,12.667]
[1646918937819,0.71439334,2602.4,2601.6,12.667]
[1646918938023,0.77005789,2602.6,2601.8,0.384]
[1646918938218,0.77005789,2602.6,2601.9,0.553]
[1646918938619,0.05566455,2602.6,2601.9,0.937]
[1646918938817,0.05566455,2602.6,2602.0,0.06956416]
[1646918939022,0.05566455,2602.6,2602.1,2.4751735]
[1646918939221,0.05566455,2602.6,2602.5,1.16287034]
[1646918939422,0.71439334,2602.8,2602.5,1.16287034]
[1646918939621,0.71439334,2602.8,2602.3,0.553]
[1646918940221,0.71439334,2602.8,2602.5,0.9611154]
[1646918940630,0.71439334,2602.7,2602.5,0.9611154]
[1646918941222,0.04894798,2602.6,2602.5,1.2611154]
[1646918942468,0.04894798,2602.6,2602.5,0.3]
[1646918942868,0.04894798,2602.6,2602.3,1.2613313]
[1646918942869,0.76334132,2602.6,2602.3,1.2613313]
[1646918943069,0.04671116,2602.5,2602.3,1.2613313]
[1646918943569,0.05637325,2602.7,2602.3,1.2613313]
[1646918943768,0.05271298,2602.7,2602.3,1.2613313]
[1646918943969,0.0036504,2602.5,2602.3,0.3]
[1646918944169,0.05834855,2602.5,2602.3,0.3]
[1646918944371,0.71464825,2602.8,2602.3,1.5142547]
[1646918944572,0.71464825,2603.3,2602.4,0.08008785]
[1646918944773,1.09914825,2603.4,2602.6,1.9214333]
[1646918944972,1.09914825,2603.4,2602.9,0.08373304]
[1646918944973,0.3845,2603.4,2602.9,0.08373304]
[1646918945209,0.3845,2603.4,2603.0,0.853]
[1646918945413,0.71464825,2603.6,2603.2,2.11698932]
[1646918945715,0.05280778,2603.8,2603.2,2.11698932]
[1646918945716,0.71464825,2603.7,2603.3,0.553]
[1646918945917,0.76745603,2603.8,2603.3,0.553]
[1646918946314,0.00227416,2603.5,2603.3,0.553]
[1646918946717,0.00227416,2603.5,2603.2,1.3]
[1646918946916,0.71692241,2603.5,2603.2,1.3]
[1646918947114,1.00527352,2603.8,2603.2,0.3]
[1646918947115,0.71464825,2603.6,2603.2,0.3]
[1646918947315,0.71464825,2603.6,2603.0,0.853]
[1646918947515,0.96095,2603.5,2603.0,0.853]
[1646918947717,0.96489676,2603.5,2603.0,0.853]
[1646918948520,0.96095,2603.5,2603.0,0.853]
[1646918948719,0.00363508,2603.4,2603.0,0.853]
[1646918949565,0.71464825,2603.7,2603.0,1.8139593]
[1646918949964,0.00363511,2603.3,2603.0,1.8139593]
[1646918950566,0.00363511,2603.3,2603.1,0.96088]
[1646918950767,0.00363511,2603.3,2603.1,4.46088]
[1646918950968,0.07120685,2603.7,2603.4,0.95243585]
[1646918951170,0.07120685,2603.7,2603.4,1.91321025]
[1646918951367,1.03199685,2603.7,2603.4,1.91321025]
[1646918951968,0.47746497,2603.6,2603.5,0.3]
[1646918952168,0.47746497,2603.6,2603.4,2.87399025]
[1646918952369,0.47746497,2603.6,2603.4,3.87399025]
[1646918952603,0.47746497,2603.6,2603.4,2.87399025]
[1646918952810,0.47746497,2603.6,2603.4,3.87399025]
[1646918953610,0.48113557,2603.6,2603.4,3.87399025]
[1646918954415,0.47746497,2603.6,2603.4,3.87399025]
[1646918954814,0.48113557,2603.6,2603.4,3.87399025]
[1646918955014,0.48113557,2603.6,2603.4,2.9215544]
[1646918955214,0.50863814,2603.6,2603.4,2.9215544]
[1646918955512,0.03117317,2603.6,2603.5,0.3]
[1646918955713,0.50406729,2603.6,2603.5,0.3]
[1646918955914,0.03117317,2603.6,2603.5,6.10533]
[1646918956113,0.92998457,2603.7,2603.6,53.5]
[1646918956366,0.90664825,2604.6,2603.6,66.167]
[1646918956562,0.47625269,2604.5,2603.8,2.3048185]
[1646918956862,0.47625269,2604.4,2603.9,4.053]
[1646918957069,0.96035,2604.9,2603.9,2.85776]
[1646918957262,0.47580146,2604.8,2604.6,1.10342368]
[1646918957470,0.47580146,2604.8,2604.6,1.65642368]
[1646918957666,0.47580146,2604.8,2604.6,2.91670258]
[1646918957867,0.47580146,2604.8,2604.6,4.40050258]
[1646918958067,0.47580146,2604.8,2604.6,3.2970789]
[1646918958269,0.47580146,2604.8,2604.6,2.2970789]
[1646918958468,0.47801587,2604.8,2604.6,3.2970789]
[1646918958871,2.39876587,2604.8,2604.6,3.0226789]
[1646918959168,0.47486875,2604.7,2604.6,1.0]
[1646918959372,0.04439268,2605.1,2604.6,1.0]
[1646918959373,0.153548,2605.0,2604.6,1.553]
[1646918959572,0.1918,2605.2,2604.6,1.553]
[1646918959573,0.00221441,2604.8,2604.6,0.9719671]
[1646918960209,0.00221441,2604.8,2604.7,1.09091517]
[1646918960412,0.0088563,2605.2,2604.7,1.09091517]
[1646918960413,0.96023,2605.2,2604.7,3.56430517]
[1646918960611,0.96023,2605.2,2605.0,0.96021]
[1646918960811,0.96023,2605.2,2605.0,1.26021]
[1646918960812,0.97580463,2605.2,2605.0,1.26021]
[1646918961212,0.01557463,2605.2,2605.0,1.26021]
[1646918961818,0.04633151,2605.5,2605.0,1.26021]
[1646918962018,2.36541321,2605.4,2605.0,2.2203708]
[1646918962218,0.00392102,2605.2,2605.0,2.2203708]
[1646918962921,1.92033,2605.4,2605.0,2.2203708]
[1646918963118,0.00392102,2605.2,2605.0,4.1406923]
[1646918963318,0.00392102,2605.2,2605.0,5.1406923]
[1646918963964,0.00392102,2605.2,2605.1,1.04382943]
[1646918964160,0.96017,2605.3,2605.0,5.6936923]
[1646918964361,0.00361098,2605.2,2605.0,4.7334823]
[1646918964561,0.00361098,2605.2,2605.0,3.2203215]
[1646918964765,0.44829205,2605.2,2604.5,1.92073]
[1646918964961,0.05014248,2605.1,2604.5,1.92073]
[1646918965363,0.11565815,2605.1,2604.5,1.92073]
[1646918965764,0.00332608,2605.0,2604.7,0.9603542]
[1646918965965,0.96369608,2605.0,2604.7,0.9603542]
[1646918966467,0.96037,2605.0,2604.7,0.9603542]
[1646918966863,0.96369608,2605.0,2604.7,0.9603542]
[1646918967715,0.96037,2605.0,2604.7,0.9603542]
[1646918968115,0.9637391,2605.0,2604.7,0.9603542]
[1646918968315,0.9637391,2605.0,2604.8,1.0431761]
[1646918968915,0.96037,2605.0,2604.8,1.0431761]
[1646918969120,0.96037,2605.0,2604.8,2.9634857]
[1646918969417,0.96037,2605.0,2604.9,0.553]
[1646918969418,0.96376856,2605.0,2604.9,0.553]
[1646918969617,0.96376856,2605.0,2604.9,0.853]
[1646918970220,0.96037,2605.0,2604.9,0.853]
[1646918974979,1.16430911,2605.0,2604.9,0.853]
[1646918975422,1.01078211,2605.0,2604.9,0.853]
[1646918976223,1.01078211,2605.0,2604.9,0.3]
[1646918976728,1.01078211,2605.0,2604.5,0.553]
[1646918976729,1.01078211,2605.0,2604.4,1.920749]
[1646918976922,1.01078211,2605.0,2603.9,4.06172771]
[1646918977127,1.34459,2604.7,2603.9,0.553]
[1646918977324,1.92117,2604.8,2603.9,0.553]
[1646918977325,0.04832409,2604.6,2603.9,0.553]
[1646918977723,0.04832409,2604.6,2603.3,3.5]
[1646918977724,1.21120172,2604.6,2603.8,1.9210751]
[1646918977924,0.04961075,2604.5,2603.8,1.9210751]
[1646918978728,1.01018075,2604.5,2603.6,2.12193705]
[1646918978957,0.00338972,2604.3,2603.7,0.9606703]
[1646918979763,0.00338972,2604.3,2603.7,1.9212803]
[1646918979764,0.96066,2604.3,2603.7,1.9212803]
[1646918980165,0.00338975,2604.1,2603.8,1.9211066]
[1646918980766,1.92131,2604.4,2604.1,0.97672874]
[1646918980966,1.92131,2604.4,2604.1,0.42211379]
[1646918981164,1.92131,2604.4,2604.1,1.38258379]
[1646918981366,0.96049,2604.3,2604.1,1.38258379]
[1646918982165,0.96049,2604.3,2604.1,2.34307769]
[1646918983618,0.96246151,2604.3,2604.1,2.34307769]
[1646918983814,0.96246151,2604.3,2604.2,0.09042896]
[1646918984519,0.96049,2604.3,2604.2,0.09042896]
[1646918984917,0.15553151,2604.4,2604.2,0.09042896]
[1646918985118,0.15553151,2604.4,2604.0,2.9208632]
[1646918985318,0.0659713,2604.3,2604.1,0.96046]
[1646918986016,0.06963778,2604.3,2604.1,0.96046]
[1646918986356,0.06963778,2604.3,2604.1,0.08311778]
[1646918986957,0.06963778,2604.3,2604.0,2.9208632]
[1646918986958,0.0659713,2604.3,2604.0,2.9208632]
[1646918987160,0.06968276,2604.3,2604.0,2.9208632]
[1646918988162,0.0659713,2604.3,2604.0,1.9208632]
[1646918988364,0.06968279,2604.3,2604.0,2.9208632]
[1646918988562,0.06968279,2604.3,2604.0,1.9208632]
[1646918988762,0.4387132,2604.2,2604.0,1.9208632]
[1646918988962,0.4387132,2604.2,2604.0,1.99362494]
[1646918989568,0.44242472,2604.2,2604.0,1.99362494]
[1646918989965,0.48595966,2604.2,2604.0,1.99362494]
[1646918990206,0.04724646,2604.2,2604.0,1.99362494]
[1646918990608,0.04353494,2604.2,2604.0,1.99362494]
[1646918990909,0.04718664,2604.2,2604.0,0.07276174]
[1646918991111,0.04718664,2604.2,2604.1,1.17415106]
[1646918991309,0.04718664,2604.2,2604.0,0.07276174]
[1646918991708,0.04353494,2604.2,2604.0,0.62576174]
[1646918992110,0.43925078,2604.1,2604.0,0.62576174]
[1646918992510,0.04718664,2604.2,2604.0,0.62576174]
[1646918992714,0.04718664,2604.2,2604.1,3.5]
[1646918993117,0.04353494,2604.2,2604.1,5.053]